bitfinex-derivatives/quotes_BTCF0:USTF0_20250904
["timestamp","ask_amount","ask_price","bid_price","bid_amount"]
[1756960185530,1.30133255,111230.0,111220.0,0.84574]
[1756960187431,1.30150488,111230.0,111220.0,0.84574]
[1756960187833,1.2531134,111230.0,111220.0,0.84574]
[1756960188027,1.30149177,111230.0,111220.0,0.84574]
[1756960190034,1.2531134,111230.0,111220.0,0.84574]
[1756960191436,0.82222458,111230.0,111220.0,0.84574]
[1756960191733,0.86406476,111230.0,111220.0,0.84574]
[1756960191939,1.17406476,111230.0,111220.0,0.84574]
[1756960193738,1.17406476,111230.0,111220.0,0.0241]
[1756960193938,1.17406476,111230.0,111220.0,0.84562]
[1756960194432,1.23866688,111230.0,111220.0,0.84562]
[1756960196142,1.59946688,111230.0,111220.0,0.84562]
[1756960199348,1.59946688,111230.0,111210.0,0.0001]
[1756960199548,0.8193607,111220.0,111210.0,0.0242]
[1756960199749,1.17090494,111220.0,111210.0,0.84558]
[1756960200650,1.17090494,111220.0,111210.0,0.82148]
[1756960200946,1.12251996,111220.0,111210.0,0.84658]
[1756960201337,1.18712208,111220.0,111210.0,0.84658]
[1756960204550,1.18712208,111220.0,111210.0,0.8465]
[1756960205551,1.12251996,111220.0,111210.0,0.8465]
[1756960207353,1.17093507,111220.0,111210.0,0.8465]
[1756960209254,1.12251996,111220.0,111210.0,0.8465]
[1756960214658,1.12251996,111220.0,111210.0,0.0251]
[1756960214957,1.12251996,111220.0,111210.0,0.84638]
[1756960215361,1.17095753,111220.0,111210.0,0.84638]
[1756960215547,1.12251996,111220.0,111210.0,0.84638]
[1756960215746,0.75067978,111220.0,111210.0,0.84638]
[1756960215948,1.12251996,111220.0,111210.0,0.84638]
[1756960217059,1.18712208,111220.0,111210.0,0.84638]
[1756960219765,0.8152819,111220.0,111210.0,0.84638]
[1756960219963,1.18712208,111220.0,111210.0,0.84638]
[1756960220358,0.8152819,111220.0,111210.0,0.84638]
[1756960220563,1.18712208,111220.0,111210.0,0.84638]
[1756960224065,1.18712208,111220.0,111210.0,0.0251]
[1756960224370,1.18712208,111220.0,111210.0,0.82216]
[1756960225165,0.8152819,111220.0,111210.0,0.84669]
[1756960225367,1.18712208,111220.0,111210.0,0.84669]
[1756960235366,1.20314603,111220.0,111210.0,0.84669]
[1756960241377,1.12251996,111220.0,111210.0,0.84669]
[1756960242580,1.20314603,111220.0,111210.0,0.84669]
[1756960245281,1.20314603,111220.0,111210.0,0.02553]
[1756960245482,1.12251996,111220.0,111210.0,0.001]
[1756960246086,0.03878,111210.0,111200.0,0.02744781]
[1756960246382,3.40939254,111210.0,111200.0,0.02734781]
[1756960247281,3.40939254,111210.0,111200.0,0.02834781]
[1756960249479,3.41025438,111210.0,111200.0,0.02834781]
[1756960250282,3.32962831,111210.0,111200.0,0.02834781]
[1756960250679,1.52522106,111210.0,111200.0,0.02834781]
[1756960250978,1.15316542,111210.0,111200.0,0.05318781]
[1756960251174,2.26933234,111210.0,111200.0,0.02834781]
[1756960251370,2.26933234,111210.0,111190.0,0.0001]
[1756960251371,0.03878,111200.0,111190.0,0.0001]
[1756960251576,0.03878,111190.0,111180.0,0.06582]
[1756960251779,1.13998744,111190.0,111180.0,0.06572]
[1756960252083,1.16151722,111190.0,111180.0,0.06572]
[1756960252583,1.16051722,111190.0,111180.0,0.0320436]
[1756960252779,1.16051722,111190.0,111180.0,0.7874036]
[1756960252978,1.16051722,111190.0,111180.0,0.0320436]
[1756960253580,1.15951722,111190.0,111180.0,0.0340436]
[1756960253777,1.16870868,111190.0,111180.0,0.0340436]
[1756960254686,1.16870868,111190.0,111180.0,0.0370436]
[1756960255389,1.12035688,111190.0,111180.0,0.0370436]
[1756960256688,0.73910978,111190.0,111180.0,0.2870436]
[1756960256888,0.73910978,111190.0,111180.0,0.67340924]
[1756960257088,0.73910978,111190.0,111180.0,0.3013536]
[1756960257889,1.11116542,111190.0,111180.0,0.2870436]
[1756960259187,1.11116542,111190.0,111180.0,0.0370436]
[1756960260093,1.11116542,111190.0,111180.0,0.8578436]
[1756960260597,1.11116542,111190.0,111180.0,1.1078436]
[1756960260787,0.73910978,111190.0,111180.0,1.47989924]
[1756960260993,0.34152978,111190.0,111180.0,1.49420924]
[1756960261192,0.11152978,111190.0,111180.0,2.97117616]
[1756960261591,0.02152978,111190.0,111180.0,2.97117616]
[1756960261994,0.02152978,111190.0,111180.0,1.85500924]
[1756960265697,0.02152978,111190.0,111180.0,3.75528924]
[1756960266291,0.33152978,111190.0,111180.0,2.3124336]
[1756960266492,1.07907542,111190.0,111180.0,2.7580436]
[1756960268801,1.07907542,111190.0,111180.0,1.9373236]
[1756960269000,1.07907542,111190.0,111180.0,2.7580036]
[1756960269502,1.07907542,111190.0,111180.0,1.9373236]
[1756960269695,1.07907542,111190.0,111180.0,2.7580036]
[1756960271201,1.07907542,111190.0,111180.0,1.9373236]
[1756960271401,1.07907542,111190.0,111180.0,2.7580036]
[1756960272191,1.07907542,111190.0,111180.0,1.9373236]
[1756960272398,1.07907542,111190.0,111180.0,2.7580036]
[1756960275106,1.07907542,111190.0,111180.0,1.9373236]
[1756960275306,1.07907542,111190.0,111180.0,2.7580036]
[1756960275806,1.08809505,111190.0,111180.0,2.7580036]
[1756960276909,1.07907542,111190.0,111180.0,2.7580036]
[1756960278406,1.07907542,111190.0,111180.0,1.9373236]
[1756960278610,1.07907542,111190.0,111180.0,2.7579636]
[1756960280111,1.15204722,111190.0,111180.0,0.8576836]
[1756960280411,1.160855,111190.0,111180.0,0.8576836]
[1756960282322,1.160855,111190.0,111180.0,0.0370436]
[1756960282512,1.160855,111190.0,111180.0,0.8576836]
[1756960284116,0.47879936,111190.0,111180.0,0.8576836]
[1756960284318,1.210855,111190.0,111180.0,0.8576836]
[1756960286016,1.20204722,111190.0,111180.0,0.8576836]
[1756960293223,1.20204722,111190.0,111180.0,0.0370436]
[1756960293422,1.20204722,111190.0,111180.0,0.8576036]
[1756960294017,1.21816447,111190.0,111180.0,0.0370436]
[1756960294220,1.21816447,111190.0,111180.0,0.8575636]
[1756960295512,1.15369542,111190.0,111180.0,0.8575636]
[1756960296219,1.21816447,111190.0,111180.0,0.8575636]
[1756960300725,1.21816447,111190.0,111180.0,0.8575236]
[1756960300926,1.21816447,111190.0,111180.0,0.0370436]
[1756960301128,1.21816447,111190.0,111180.0,0.8575236]
[1756960302936,0.85736447,111190.0,111180.0,0.0370436]
[1756960303137,1.57896447,111190.0,111180.0,0.8575236]
[1756960306545,1.51449542,111190.0,111180.0,0.8575236]
[1756960309450,1.5145294,111190.0,111180.0,0.8575236]
[1756960310649,1.57899845,111190.0,111180.0,0.8575236]
[1756960313250,1.5145294,111190.0,111180.0,0.8575236]
[1756960317250,0.81539287,111190.0,111180.0,1.49387322]
[1756960317454,0.02152978,111190.0,111180.0,1.1217836]
[1756960317749,0.02152978,111190.0,111180.0,1.49387322]
[1756960319249,0.02152978,111190.0,111180.0,0.8717836]
[1756960319450,0.02152978,111190.0,111180.0,1.24387322]
[1756960320348,0.02152978,111190.0,111180.0,0.8717836]
[1756960320548,0.02152978,111190.0,111180.0,1.24387322]
[1756960321348,0.38232978,111190.0,111180.0,1.24387322]
[1756960322250,0.75647978,111190.0,111180.0,0.0513036]
[1756960322544,0.75647978,111190.0,111180.0,0.42339322]
[1756960322748,0.75647978,111190.0,111180.0,1.24367322]
[1756960326456,0.75647978,111190.0,111180.0,0.8715836]
[1756960326645,0.75647978,111190.0,111180.0,1.24363322]
[1756960326851,0.40647978,111190.0,111180.0,1.24363322]
[1756960327248,0.77647978,111190.0,111180.0,1.24363322]
[1756960327453,0.77647978,111190.0,111180.0,0.8715436]
[1756960329562,0.40647978,111190.0,111180.0,0.8715436]
[1756960330060,0.38232978,111190.0,111180.0,1.24363322]
[1756960333157,0.76979978,111190.0,111180.0,0.8572436]
[1756960333462,0.41979978,111190.0,111180.0,1.22933322]
[1756960333652,0.73979978,111190.0,111180.0,1.22933322]
[1756960333856,0.73979978,111190.0,111180.0,0.40913322]
[1756960334159,0.73979978,111190.0,111180.0,0.8572436]
[1756960335561,1.1418894,111190.0,111180.0,0.8572436]
[1756960337062,0.76979978,111190.0,111180.0,0.0370436]
[1756960337262,1.1418894,111190.0,111180.0,0.8572036]
[1756960338256,0.7918894,111190.0,111180.0,0.0370436]
[1756960338458,1.1218894,111190.0,111180.0,0.8572036]
[1756960339058,0.7918894,111190.0,111180.0,0.8572036]
[1756960339257,1.1618894,111190.0,111180.0,0.8572036]
[1756960345167,0.84033249,111190.0,111180.0,0.8572036]
[1756960345363,1.16033249,111190.0,111180.0,0.8572036]
[1756960345566,1.1118894,111190.0,111180.0,0.8572036]
[1756960347071,0.7918894,111190.0,111180.0,0.8572036]
[1756960348265,0.41979978,111190.0,111180.0,1.22929322]
[1756960348473,0.41979978,111190.0,111180.0,1.24361322]
[1756960349771,0.40550978,111190.0,111180.0,1.24361322]
[1756960350175,0.40550978,111190.0,111180.0,0.8715236]
[1756960350473,0.40550978,111190.0,111180.0,1.24361322]
[1756960351069,0.41979978,111190.0,111180.0,1.24361322]
[1756960352578,0.41979978,111190.0,111180.0,1.22917322]
[1756960353370,0.41979978,111190.0,111180.0,0.8570836]
[1756960353674,0.41979978,111190.0,111180.0,1.22917322]
[1756960354376,0.04470978,111190.0,111180.0,1.24349322]
[1756960354877,0.04470978,111190.0,111180.0,1.50869322]
[1756960355376,0.72979978,111190.0,111180.0,1.49433322]
[1756960355578,0.41979978,111190.0,111180.0,1.49433322]
[1756960356978,0.40550978,111190.0,111180.0,1.50865322]
[1756960357479,0.41979978,111190.0,111180.0,1.50865322]
[1756960357981,0.41979978,111190.0,111180.0,1.49433322]
[1756960359682,0.76979978,111190.0,111180.0,1.50840322]
[1756960360079,0.41979978,111190.0,111180.0,1.50840322]
[1756960360385,0.40550978,111190.0,111180.0,1.50840322]
[1756960360577,0.40550978,111190.0,111180.0,1.1363136]
[1756960360777,0.40550978,111190.0,111180.0,1.50840322]
[1756960371491,0.40550978,111190.0,111180.0,1.50826946]
[1756960379000,0.45395287,111190.0,111180.0,1.50826946]
[1756960379990,0.04470978,111190.0,111180.0,1.88022532]
[1756960380599,0.04470978,111190.0,111180.0,1.50826946]
[1756960382195,0.04470978,111190.0,111180.0,1.50802946]
[1756960388808,0.02152978,111190.0,111180.0,1.50802946]
[1756960393414,0.04427978,111190.0,111180.0,1.50794946]
[1756960394612,0.04427978,111190.0,111180.0,0.68826946]
[1756960394819,0.04427978,111190.0,111180.0,1.50794946]
[1756960395813,0.04427978,111190.0,111180.0,0.68826946]
[1756960396018,0.04427978,111190.0,111180.0,1.50794946]
[1756960398116,0.36427978,111190.0,111180.0,1.50794946]
[1756960398416,0.04427978,111190.0,111180.0,1.50794946]
[1756960399108,0.02152978,111190.0,111180.0,1.50794946]
[1756960400021,0.36427978,111190.0,111180.0,0.68826946]
[1756960400226,0.04427978,111190.0,111180.0,1.50790946]
[1756960406420,0.02152978,111190.0,111180.0,1.50790946]
[1756960407724,0.02152978,111190.0,111180.0,3.32449054]
[1756960408222,0.02152978,111190.0,111180.0,3.06929054]
[1756960409121,0.02152978,111190.0,111180.0,3.39929054]
[1756960410126,0.44571309,111220.0,111210.0,0.02477]
[1756960410328,0.84740776,111220.0,111210.0,1.21632586]
[1756960411016,0.84740776,111220.0,111210.0,1.2252533]
[1756960411215,0.84940776,111220.0,111210.0,1.2252533]
[1756960411418,0.85140776,111220.0,111210.0,1.2395133]
[1756960411618,1.03140776,111220.0,111210.0,1.2395133]
[1756960412018,0.72140776,111220.0,111210.0,1.2395133]
[1756960412726,0.82140776,111220.0,111210.0,1.2395133]
[1756960413429,1.10140776,111220.0,111210.0,1.2395133]
[1756960413722,0.72140776,111220.0,111210.0,1.2395133]
[1756960413930,0.83140776,111220.0,111210.0,1.2395133]
[1756960414122,0.82140776,111220.0,111210.0,1.2395133]
[1756960414830,0.82140776,111220.0,111210.0,1.2252533]
[1756960415132,0.77296467,111220.0,111210.0,1.2252533]
[1756960415531,0.82140776,111220.0,111210.0,1.2252533]
[1756960415928,0.82140776,111220.0,111210.0,0.85329744]
[1756960416128,0.82140776,111220.0,111210.0,1.2252533]
[1756960417333,0.77296467,111220.0,111210.0,1.2252533]
[1756960417535,0.77296467,111220.0,111210.0,0.85329744]
[1756960417832,0.77296467,111220.0,111210.0,1.2252533]
[1756960421939,0.06216467,111220.0,111210.0,1.2395133]
[1756960422438,0.04844467,111220.0,111210.0,1.2395133]
[1756960422838,0.04844467,111220.0,111210.0,0.86755744]
[1756960423033,0.04844467,111220.0,111210.0,0.4199133]
[1756960423229,0.04844467,111220.0,111210.0,1.2393533]
[1756960424135,0.02569467,111220.0,111210.0,2.69511008]
[1756960425643,0.02569467,111220.0,111210.0,3.32111008]
[1756960426744,0.02469467,111220.0,111210.0,3.32111008]
[1756960427745,0.43308309,111240.0,111230.0,0.03285]
[1756960427946,0.47464,111240.0,111230.0,1.22420586]
[1756960428846,0.47764,111240.0,111230.0,1.22420586]
[1756960429347,0.47764,111240.0,111230.0,0.85225]
[1756960429549,0.47964,111240.0,111230.0,1.22420586]
[1756960431455,0.47964,111240.0,111230.0,1.22385578]
[1756960432552,0.38964,111240.0,111230.0,1.22385578]
[1756960434747,0.38964,111240.0,111230.0,0.85225]
[1756960434952,0.38964,111240.0,111230.0,1.22385578]
[1756960437245,0.005,111240.0,111230.0,1.31372878]
[1756960437441,0.005,111240.0,111230.0,2.04613456]
[1756960437650,0.005,111240.0,111230.0,3.03934612]
[1756960439145,0.005,111240.0,111230.0,2.78934612]
[1756960440049,0.02648801,111240.0,111230.0,2.78934612]
[1756960441055,0.02648801,111240.0,111230.0,2.78986612]
[1756960441649,0.02648801,111240.0,111230.0,1.96994612]
[1756960441853,0.02648801,111240.0,111230.0,2.78986612]
[1756960442155,0.02648801,111240.0,111230.0,1.96994612]
[1756960443053,0.02648801,111240.0,111230.0,1.58521578]
[1756960443752,0.02648801,111240.0,111230.0,1.67508888]
[1756960444458,0.05032801,111240.0,111230.0,0.85512888]
[1756960444665,0.05032801,111240.0,111230.0,1.67504888]
[1756960445157,0.05032801,111240.0,111230.0,1.67488888]
[1756960445659,0.05032801,111240.0,111230.0,0.85512888]
[1756960445857,0.05032801,111240.0,111230.0,1.67500888]
[1756960446860,0.99570801,111240.0,111230.0,1.47956578]
[1756960447159,1.36731379,111240.0,111230.0,1.10796]
[1756960447754,1.36731379,111240.0,111230.0,0.28808]
[1756960447960,1.37624814,111240.0,111230.0,1.08524]
[1756960448161,1.05308545,111240.0,111230.0,0.82004]
[1756960448457,1.42469123,111240.0,111230.0,0.82004]
[1756960449360,1.05308545,111240.0,111230.0,0.82004]
[1756960449563,1.42469123,111240.0,111230.0,0.82004]
[1756960450156,0.01425,111230.0,111220.0,0.02418]
[1756960450358,0.74993801,111230.0,111220.0,1.21564578]
[1756960450755,0.74993801,111230.0,111220.0,0.39568578]
[1756960450960,0.74993801,111230.0,111220.0,1.21556578]
[1756960451667,0.75093801,111230.0,111220.0,1.21556578]
[1756960453061,0.75293801,111230.0,111220.0,1.21556578]
[1756960453669,0.42293801,111230.0,111220.0,1.21556578]
[1756960453864,0.80293801,111230.0,111220.0,1.21556578]
[1756960454364,0.80293801,111230.0,111220.0,1.23556578]
[1756960458065,0.80293801,111230.0,111220.0,1.56556578]
[1756960460363,0.79293801,111230.0,111220.0,1.56556578]
[1756960460566,0.77293801,111230.0,111220.0,1.56556578]
[1756960461366,0.42293801,111230.0,111220.0,1.56556578]
[1756960461865,0.06213801,111230.0,111220.0,1.56556578]
[1756960462066,0.42293801,111230.0,111220.0,1.56556578]
[1756960463767,0.42293801,111230.0,111220.0,1.19396]
[1756960464066,0.42293801,111230.0,111220.0,1.56556578]
[1756960465869,0.75293801,111230.0,111220.0,1.56556578]
[1756960468073,0.42293801,111230.0,111220.0,1.56556578]
[1756960468274,0.79293801,111230.0,111220.0,0.39568578]
[1756960468572,0.79293801,111230.0,111220.0,1.27500578]
[1756960468766,0.42293801,111230.0,111220.0,1.27500578]
[1756960468970,0.76293801,111230.0,111220.0,1.27500578]
[1756960473180,0.42293801,111230.0,111220.0,1.27500578]
[1756960473479,0.42293801,111230.0,111220.0,1.28497578]
[1756960475478,0.79293801,111230.0,111220.0,1.28497578]
[1756960475979,0.42293801,111230.0,111220.0,1.28497578]
[1756960478694,0.42293801,111230.0,111220.0,0.46565578]
[1756960478893,0.79293801,111230.0,111220.0,1.28497578]
[1756960479094,0.42293801,111230.0,111220.0,1.28497578]
[1756960479792,0.42293801,111230.0,111220.0,0.91337]
[1756960480096,0.42293801,111230.0,111220.0,1.28497578]
[1756960480295,0.42293801,111230.0,111220.0,0.91337]
[1756960480482,0.42293801,111230.0,111220.0,1.28497578]
[1756960480888,0.40868801,111230.0,111220.0,1.28497578]
[1756960485796,0.74868801,111230.0,111220.0,1.28497578]
[1756960485996,0.40868801,111230.0,111220.0,1.28497578]
[1756960488097,0.40868801,111230.0,111220.0,0.91637]
[1756960488298,0.40868801,111230.0,111220.0,1.28797578]
[1756960493399,0.40868801,111230.0,111220.0,0.91637]
[1756960493603,0.40868801,111230.0,111220.0,1.28806161]
[1756960500208,0.40868801,111230.0,111220.0,0.91637]
[1756960500409,0.40868801,111230.0,111220.0,1.28806161]
[1756960503310,0.04788801,111230.0,111220.0,1.55326161]
[1756960503510,0.04788801,111230.0,111220.0,1.18157]
[1756960503711,0.04788801,111230.0,111220.0,1.55326161]
[1756960504008,0.02448801,111230.0,111220.0,2.25394281]
[1756960504206,0.02448801,111230.0,111220.0,2.31406161]
[1756960504814,0.02448801,111230.0,111220.0,2.40394281]
[1756960505712,0.02448801,111230.0,111220.0,2.31406161]
[1756960506315,0.02448801,111230.0,111220.0,2.31398161]
[1756960507521,0.02448801,111230.0,111220.0,1.94225]
[1756960507719,0.02448801,111230.0,111220.0,1.12305]
[1756960507920,0.02448801,111230.0,111220.0,2.31394161]
[1756960509320,0.02448801,111230.0,111220.0,1.95314161]
[1756960512223,0.02448801,111230.0,111220.0,2.31394161]
[1756960513322,0.02448801,111230.0,111220.0,1.49474161]
[1756960513628,0.02448801,111230.0,111220.0,2.31390161]
[1756960514127,0.02448801,111230.0,111220.0,1.12305]
[1756960514422,0.06201801,111230.0,111220.0,1.69309161]
[1756960514628,0.06201801,111230.0,111220.0,0.87397161]
[1756960514926,0.06201801,111230.0,111220.0,1.69309161]
[1756960515127,0.06201801,111230.0,111220.0,0.87397161]
[1756960515425,0.06201801,111230.0,111220.0,1.69309161]
[1756960515623,0.31201801,111230.0,111220.0,1.3214]
[1756960515816,0.31201801,111230.0,111220.0,1.69309161]
[1756960516818,0.67281801,111230.0,111220.0,1.69309161]
[1756960517226,0.67281801,111230.0,111220.0,0.50228]
[1756960517527,0.67281801,111230.0,111220.0,1.69309161]
[1756960517828,0.67281801,111230.0,111220.0,0.87397161]
[1756960518023,0.67281801,111230.0,111220.0,1.69309161]
[1756960518922,0.42281801,111230.0,111220.0,0.87397161]
[1756960519125,1.45295271,111230.0,111220.0,0.50228]
[1756960519327,1.45295271,111230.0,111220.0,1.11136]
[1756960519527,1.46216626,111230.0,111220.0,1.11136]
[1756960520127,1.47819222,111230.0,111220.0,1.08728]
[1756960520929,1.47819222,111230.0,111220.0,0.84667]
[1756960521428,1.41372317,111230.0,111220.0,0.84667]
[1756960523030,1.46214235,111230.0,111220.0,0.84667]
[1756960525232,1.09045074,111230.0,111220.0,0.84667]
[1756960525432,1.08123719,111230.0,111220.0,0.84667]
[1756960525626,1.4629288,111230.0,111220.0,0.84667]
[1756960525933,1.09123719,111230.0,111220.0,1.21836161]
[1756960529834,0.84123719,111230.0,111220.0,1.21836161]
[1756960530332,0.84123719,111230.0,111220.0,0.84667]
[1756960531636,0.47123719,111230.0,111220.0,1.21836161]
[1756960531934,0.83123719,111230.0,111220.0,1.21836161]
[1756960532836,0.80974918,111230.0,111220.0,1.21836161]
[1756960533037,0.8314171,111230.0,111220.0,1.21836161]
[1756960534031,0.4714171,111230.0,111220.0,0.84667]
[1756960534237,0.7814171,111230.0,111220.0,1.21836161]
[1756960535536,0.7814171,111230.0,111220.0,0.84667]
[1756960536341,0.4714171,111230.0,111220.0,0.84667]
[1756960536533,0.7814171,111230.0,111220.0,0.84667]
[1756960537736,0.5714171,111230.0,111220.0,0.84667]
[1756960538037,0.5714171,111230.0,111220.0,1.21836161]
[1756960538336,0.7814171,111230.0,111220.0,0.85734]
[1756960538537,0.7814171,111230.0,111220.0,1.22903161]
[1756960543437,0.5814171,111230.0,111220.0,1.22903161]
[1756960543638,0.8266371,111230.0,111220.0,1.22903161]
[1756960543842,0.4566371,111230.0,111220.0,1.22903161]
[1756960546438,0.8266371,111230.0,111220.0,0.03826]
[1756960546640,0.8403971,111230.0,111220.0,1.22903161]
[1756960546845,0.4703971,111230.0,111220.0,1.22903161]
[1756960547040,0.7803971,111230.0,111220.0,1.22903161]
[1756960549147,0.7803971,111230.0,111220.0,0.40995161]
[1756960549337,0.7803971,111230.0,111220.0,1.22899161]
[1756960549538,0.7803971,111230.0,111220.0,0.40995161]
[1756960549738,0.7803971,111230.0,111220.0,1.22899161]
[1756960551941,0.7903971,111230.0,111220.0,1.22899161]
[1756960552450,0.4703971,111230.0,111220.0,1.22899161]
[1756960552844,0.7803971,111230.0,111220.0,0.8573]
[1756960553038,0.7803971,111230.0,111220.0,0.84663]
[1756960553242,0.7803971,111230.0,111220.0,0.39928161]
[1756960553443,0.7803971,111230.0,111220.0,1.21835004]
[1756960554252,0.4703971,111230.0,111220.0,1.21835004]
[1756960554751,0.7903971,111230.0,111220.0,1.21831004]
[1756960555647,0.80644697,111230.0,111220.0,1.21831004]
[1756960556556,0.80644697,111230.0,111220.0,0.39931004]
[1756960556756,0.80644697,111230.0,111220.0,1.21831004]
[1756960557456,0.83644697,111230.0,111220.0,1.21831004]
[1756960558955,0.83644697,111230.0,111220.0,0.02759]
[1756960559259,0.79644697,111230.0,111220.0,1.21831004]
[1756960560157,0.48644697,111230.0,111220.0,1.21831004]
[1756960560960,0.48644697,111230.0,111220.0,0.39931004]
[1756960561261,0.48644697,111230.0,111220.0,1.21827004]
[1756960561646,0.85644697,111230.0,111220.0,1.21827004]
[1756960563956,0.48644697,111230.0,111220.0,1.21827004]
[1756960564159,0.80644697,111230.0,111220.0,1.21827004]
[1756960564358,0.48644697,111230.0,111220.0,1.21827004]
[1756960565465,0.79644697,111230.0,111220.0,1.21827004]
[1756960565667,0.73197792,111230.0,111220.0,1.21827004]
[1756960565868,0.42197792,111230.0,111220.0,1.21827004]
[1756960566566,0.76197792,111230.0,111220.0,1.21827004]
[1756960567563,0.76197792,111230.0,111220.0,1.21823004]
[1756960568165,0.42197792,111230.0,111220.0,1.21823004]
[1756960568561,0.75197792,111230.0,111220.0,1.21823004]
[1756960569566,0.39117792,111230.0,111220.0,1.21823004]
[1756960569761,1.11277792,111230.0,111220.0,1.21823004]
[1756960570667,1.11277792,111230.0,111220.0,0.39931004]
[1756960570868,1.17724697,111230.0,111220.0,1.21823004]
[1756960571468,1.17724697,111230.0,111220.0,0.39931004]
[1756960571666,1.17724697,111230.0,111220.0,1.21823004]
[1756960575070,0.48644697,111230.0,111220.0,1.21823004]
[1756960575268,0.45673611,111230.0,111220.0,1.22890004]
[1756960577263,0.43398611,111230.0,111220.0,1.22890004]
[1756960577472,0.02466792,111230.0,111220.0,1.47890004]
[1756960577671,0.02466792,111230.0,111220.0,1.92958124]
[1756960577872,0.02466792,111230.0,111220.0,2.25958124]
[1756960582677,0.02466792,111230.0,111220.0,1.35078004]
[1756960582878,0.02466792,111230.0,111220.0,1.93958004]
[1756960583077,0.02466792,111230.0,111220.0,2.20478004]
[1756960584970,0.02466792,111230.0,111220.0,1.47586124]
[1756960585175,0.02466792,111230.0,111220.0,2.29462124]
[1756960585674,0.02466792,111230.0,111220.0,2.20474004]
[1756960586878,0.02466792,111230.0,111220.0,1.38598004]
[1756960587080,0.02466792,111230.0,111220.0,2.20474004]
[1756960588780,0.02466792,111230.0,111220.0,2.20470004]
[1756960590775,0.003,111230.0,111220.0,2.20470004]
[1756960590977,0.02466831,111230.0,111220.0,2.20470004]
[1756960594776,0.02466831,111230.0,111220.0,1.38598004]
[1756960594981,0.02466831,111230.0,111220.0,2.20462004]
[1756960596079,0.02466831,111230.0,111220.0,2.42462004]
[1756960596981,0.03931831,111230.0,111220.0,1.35598004]
[1756960597185,0.03931831,111230.0,111220.0,2.17458004]
[1756960597378,0.02466831,111230.0,111220.0,2.17458004]
[1756960603794,0.02466831,111230.0,111220.0,4.07394004]
[1756960605897,0.02466831,111230.0,111220.0,4.16382124]
[1756960612202,0.02466831,111230.0,111220.0,4.07394004]
[1756960612601,0.02466831,111230.0,111220.0,4.53554128]
[1756960612901,0.02466831,111230.0,111220.0,3.25534004]
[1756960613101,0.02466831,111230.0,111220.0,3.80862004]
[1756960613700,0.02466831,111230.0,111220.0,3.80849514]
[1756960614096,0.02466831,111230.0,111220.0,3.80845514]
[1756960616801,0.02466831,111230.0,111220.0,3.43686]
[1756960617001,0.02466831,111230.0,111220.0,3.80845514]
[1756960619103,0.02466831,111230.0,111220.0,3.89833634]
[1756960619410,0.02466831,111230.0,111220.0,3.80845514]
[1756960625103,0.02466831,111230.0,111220.0,3.80837514]
[1756960626306,0.02466831,111230.0,111220.0,3.43678]
[1756960626511,0.02466831,111230.0,111220.0,3.80837514]
[1756960630107,0.02466831,111230.0,111220.0,2.99001514]
[1756960630302,0.02466831,111230.0,111220.0,3.80837514]
[1756960634305,0.02466831,111230.0,111220.0,2.99001514]
[1756960634505,0.02466831,111230.0,111220.0,3.80833514]
[1756960637108,0.02466831,111230.0,111220.0,3.43674]
[1756960637308,0.02466831,111230.0,111220.0,3.80833514]
[1756960637707,0.02466831,111230.0,111220.0,2.99001514]
[1756960637897,0.03886831,111230.0,111220.0,3.80829514]
[1756960638204,0.03886831,111230.0,111220.0,3.4367]
[1756960638409,0.02466831,111230.0,111220.0,3.80829514]
[1756960638611,0.02466831,111230.0,111220.0,2.99001514]
[1756960638802,0.02466831,111230.0,111220.0,3.80829514]
[1756960639800,0.02466831,111230.0,111220.0,2.99001514]
[1756960640005,0.02466831,111230.0,111220.0,3.80829514]
[1756960640510,0.02466831,111230.0,111220.0,2.99001514]
[1756960640704,0.02466831,111230.0,111220.0,3.80829514]
[1756960641212,0.02466831,111230.0,111220.0,2.99001514]
[1756960641399,0.02466831,111230.0,111220.0,3.80829514]
[1756960642610,0.02466831,111230.0,111220.0,3.4367]
[1756960642911,0.02466831,111230.0,111220.0,3.80829514]
[1756960647513,0.02466831,111230.0,111220.0,3.4367]
[1756960647813,0.02466831,111230.0,111220.0,3.80829514]
[1756960652106,0.02466831,111230.0,111220.0,3.89817634]
[1756960654718,0.02466831,111230.0,111220.0,3.80829514]
[1756960655017,0.02466831,111230.0,111220.0,3.80821514]
[1756960656512,0.02466831,111230.0,111220.0,3.89809634]
[1756960658931,0.02466831,111230.0,111220.0,2.99001514]
[1756960659130,0.02466831,111230.0,111220.0,3.80817514]
[1756960659432,0.02466831,111230.0,111220.0,2.99001514]
[1756960659626,0.02466831,111230.0,111220.0,3.80817514]
[1756960660532,0.02466831,111230.0,111220.0,2.99001514]
[1756960660729,0.02466831,111230.0,111220.0,3.80813514]
[1756960661029,0.02466831,111230.0,111220.0,2.99001514]
[1756960661233,0.03871831,111230.0,111220.0,3.80813514]
[1756960662835,0.02466831,111230.0,111220.0,3.80813514]
[1756960664231,0.02475086,111230.0,111220.0,3.80813514]
[1756960666838,0.02475086,111230.0,111220.0,2.99001514]
[1756960667034,0.41880086,111230.0,111220.0,2.62921514]
[1756960667236,0.41880086,111230.0,111220.0,3.43662514]
[1756960667237,0.77960086,111230.0,111220.0,3.43662514]
[1756960667429,0.77960086,111230.0,111220.0,3.44729514]
[1756960668936,0.41880086,111230.0,111220.0,3.44729514]
[1756960670531,0.02475086,111230.0,111220.0,3.44729514]
[1756960674240,0.02475086,111230.0,111220.0,3.80809514]
[1756960675640,0.02475086,111230.0,111220.0,3.80813445]
[1756960685248,0.02473498,111230.0,111220.0,3.80813445]
[1756960686951,0.02473498,111230.0,111220.0,4.07333445]
[1756960691161,0.02473498,111230.0,111220.0,3.25525445]
[1756960691458,0.02473498,111230.0,111220.0,4.07313445]
[1756960692056,0.02473498,111230.0,111220.0,2.88362]
[1756960692258,0.03844498,111230.0,111220.0,4.06246445]
[1756960693057,0.02473498,111230.0,111220.0,4.07313445]
[1756960712068,0.02473498,111230.0,111220.0,4.32313445]
[1756960712273,0.02473498,111230.0,111220.0,4.7846501]
[1756960712477,0.02473498,111230.0,111220.0,4.32313445]
[1756960713574,0.02473498,111230.0,111220.0,3.50525445]
[1756960713775,0.02473498,111230.0,111220.0,4.32293445]
[1756960715773,0.02473498,111230.0,111220.0,3.50525445]
[1756960716077,0.02473498,111230.0,111220.0,4.32293445]
[1756960720480,0.02473498,111230.0,111220.0,4.32285445]
[1756960720984,0.02473498,111230.0,111220.0,3.50525445]
[1756960721182,0.02473498,111230.0,111220.0,4.32285445]
[1756960721988,0.02473498,111230.0,111220.0,3.50525445]
[1756960722182,0.02473498,111230.0,111220.0,3.25525445]
[1756960722183,0.28958498,111230.0,111220.0,3.25525445]
[1756960722481,0.28958498,111230.0,111220.0,4.07281445]
[1756960724488,0.27473498,111230.0,111220.0,4.07281445]
[1756960734096,0.27473498,111230.0,111220.0,3.25525445]
[1756960734283,0.27473498,111230.0,111220.0,4.07273445]
[1756960735497,0.27473498,111230.0,111220.0,4.07272203]